lending/lending_fUSD_20240411
["ID","MTS","AMOUNT","RATE_DAILY","PERIOD"]
[322183417,1712866256561,-500.0,0.00027671,2]
[322183418,1712866256571,-627.79,0.00027671,2]
[322183419,1712866256581,-500.0,0.00027671,2]
[322183420,1712866256591,-1163.4,0.00027671,2]
[322183421,1712866256600,-500.0,0.00027671,2]
[322183422,1712866256609,-500.0,0.00027671,2]
[322183423,1712866256619,-150.0,0.00027671,2]
[322183424,1712866256630,-500.0,0.00027671,2]
[322183425,1712866256641,-500.0,0.00027671,2]
[322183426,1712866256651,-27146.98,0.00027671,2]
[322183427,1712866256660,-500.0,0.00027671,2]
[322183428,1712866256671,-500.0,0.00027671,2]
[322183429,1712866256680,-843.9,0.00027671,2]
[322183430,1712866256690,-8521.38,0.00027671,2]
[322183431,1712866256700,-500.0,0.00027671,2]
[322183432,1712866256711,-500.0,0.00027671,2]
[322183433,1712866256722,-1061.37,0.00027671,2]
[322183434,1712866256732,-500.0,0.00027671,2]
[322183435,1712866256745,-500.0,0.00027671,2]
[322183436,1712866256754,-500.0,0.00027671,2]
[322183437,1712866256763,-6259.08,0.00027671,2]
[322183438,1712866256772,-1619.15,0.00027671,2]
[322183439,1712866256781,-508.28,0.00027671,2]
[322183440,1712866256792,-500.0,0.00027671,2]
[322183441,1712866256802,-2254.14,0.00027671,2]
[322183442,1712866256811,-753.86,0.00027671,2]
[322183443,1712866256821,-6254.21,0.00027671,2]
[322183444,1712866256831,-6238.81,0.00027671,2]
[322183445,1712866256841,-770.01,0.00027671,2]
[322183446,1712866256852,-500.0,0.00027671,2]
[322183447,1712866256862,-500.0,0.00027671,2]
[322183448,1712866256873,-761.66,0.00027671,2]
[322183449,1712866256882,-500.0,0.00027671,2]
[322183450,1712866256892,-2369.78,0.00027671,2]
[322183451,1712866256901,-500.0,0.00027671,2]
[322183452,1712866256912,-584.98376709,0.00027671,2]
[322183453,1712866256921,-500.0,0.00027671,2]
[322183454,1712866256931,-500.0,0.00027671,2]
[322183455,1712866256941,-1115.09,0.00027671,2]
[322183456,1712866256952,-10990.78,0.00027671,2]
[322183457,1712866256961,-1645.65,0.00027671,2]
[322183458,1712866256971,-500.0,0.00027671,2]
[322183459,1712866256981,-500.0,0.00027671,2]
[322183460,1712866256991,-4380.45,0.00027671,2]
[322183461,1712866257000,-500.0,0.00027671,2]
[322183462,1712866257009,-506.27479757,0.00027671,2]
[322183463,1712866257018,-500.0,0.00027671,2]
[322183464,1712866257028,-800.96,0.00027671,2]
[322183465,1712866257037,-2787.2,0.00027671,2]
[322183466,1712866257046,-500.0,0.00027671,2]
[322183467,1712866257055,-500.0,0.00027671,2]
[322183468,1712866257064,-500.0,0.00027671,2]
[322183469,1712866257073,-500.0,0.00027671,2]
[322183470,1712866257082,-500.0,0.00027671,2]
[322183471,1712866257091,-6266.29,0.00027671,2]
[322183472,1712866257101,-1566.71,0.00027671,2]
[322183473,1712866257110,-500.0,0.00027671,2]
[322183474,1712866257119,-500.0,0.00027671,2]
[322183475,1712866257128,-523.15,0.00027671,2]
[322183476,1712866257139,-500.0,0.00027671,2]
[322183477,1712866257148,-500.0,0.00027671,2]
[322183478,1712866257157,-500.0,0.00027671,2]
[322183479,1712866257166,-500.0,0.00027671,2]
[322183480,1712866257175,-1938.1,0.00027671,2]
[322183481,1712866257184,-500.0,0.00027671,2]
[322183482,1712866257193,-605.01,0.00027671,2]
[322183483,1712866257202,-500.0,0.00027671,2]
[322183484,1712866257211,-973.92,0.00027671,2]
[322183485,1712866257219,-500.0,0.00027671,2]
[322183486,1712866257228,-1739.79,0.00027671,2]
[322183487,1712866257238,-1400.27,0.00027671,2]
[322183488,1712866257246,-500.0,0.00027671,2]
[322183489,1712866257256,-500.0,0.00027671,2]
[322183490,1712866257265,-500.0,0.00027671,2]
[322183491,1712866257274,-3546.73,0.00027671,2]
[322183492,1712866257283,-13292.4,0.00027671,2]
[322183493,1712866257293,-602.04,0.00027671,2]
[322183494,1712866257302,-2566.34,0.00027671,2]
[322183495,1712866257311,-1361.07,0.00027671,2]
[322183496,1712866257322,-500.0,0.00027671,2]
[322183497,1712866257332,-500.0,0.00027671,2]
[322183498,1712866257341,-500.0,0.00027671,2]
[322183499,1712866257534,-500.0,0.00027671,2]
[322183500,1712866257543,-500.0,0.00027671,2]
[322183501,1712866257552,-500.0,0.00027671,2]
[322183502,1712866257562,-1039.63,0.00027671,2]
[322183503,1712866257571,-500.0,0.00027671,2]
[322183504,1712866257580,-846.12,0.00027671,2]
[322183505,1712866257589,-561.89362522,0.00027671,2]
[322183506,1712866257599,-500.0,0.00027671,2]
[322183507,1712866257607,-9925.14,0.00027671,2]
[322183508,1712866257616,-500.0,0.00027671,2]
[322183509,1712866257626,-1798.57,0.00027671,2]
[322183510,1712866257635,-500.0,0.00027671,2]
[322183511,1712866257644,-452.32250519,0.00027671,2]
[322183512,1712866257653,-500.0,0.00027671,2]
[322183513,1712866257662,-500.0,0.00027671,2]
[322183514,1712866257671,-1452.3,0.00027671,2]
[322183515,1712866257681,-4132.98,0.00027671,2]
[322183516,1712866257689,-500.0,0.00027671,2]
[322183517,1712866257699,-500.0,0.00027671,2]
[322183518,1712866257708,-793.79,0.00027671,2]
[322183519,1712866257717,-539.59,0.00027671,2]
[322183520,1712866257726,-500.0,0.00027671,2]
[322183521,1712866257735,-500.0,0.00027671,2]
[322183522,1712866257745,-19840.6,0.00027671,2]
[322183523,1712866257754,-1099.26,0.00027671,2]
[322183524,1712866257763,-500.0,0.00027671,2]
[322183525,1712866257772,-500.0,0.00027671,2]
[322183526,1712866257781,-2208.79,0.00027671,2]
[322183527,1712866257791,-750.35,0.00027671,2]
[322183528,1712866257800,-6827.64,0.00027671,2]
[322183529,1712866257809,-500.0,0.00027671,2]
[322183530,1712866257818,-2183.54,0.00027671,2]
[322183531,1712866257828,-500.0,0.00027671,2]
[322183532,1712866257837,-1719.86,0.00027671,2]
[322183533,1712866257846,-503.65514865,0.00027671,2]
[322183534,1712866257856,-500.0,0.00027671,2]
[322183535,1712866257865,-3950.85,0.00027671,2]
[322183536,1712866257874,-500.0,0.00027671,2]
[322183537,1712866257885,-8645.69,0.00027671,2]
[322183538,1712866257893,-500.0,0.00027671,2]
[322183539,1712866257903,-1754.23,0.00027671,2]
[322183540,1712866257912,-626.99,0.00027671,2]
[322183541,1712866257921,-1580.87,0.00027671,2]
[322183542,1712866257930,-500.0,0.00027671,2]
[322183543,1712866257939,-1043.68,0.00027671,2]
[322183544,1712866257948,-583.09066339,0.00027671,2]
[322183545,1712866257957,-26466.83,0.00027671,2]
[322183546,1712866257966,-500.0,0.00027671,2]
[322183547,1712866257975,-2393.4,0.00027671,2]
[322183548,1712866257984,-3789.07,0.00027671,2]
[322183549,1712866257993,-2458.14,0.00027671,2]
[322183550,1712866258002,-2685.76,0.00027671,2]
[322183551,1712866258011,-711.18,0.00027671,2]
[322183552,1712866258020,-500.0,0.00027671,2]
[322183553,1712866258029,-500.0,0.00027671,2]
[322183554,1712866258038,-500.0,0.00027671,2]
[322183555,1712866258047,-1148.23,0.00027671,2]
[322183556,1712866258056,-500.0,0.00027671,2]
[322183557,1712866258065,-1633.43,0.00027671,2]
[322183558,1712866258074,-500.0,0.00027671,2]
[322183559,1712866258085,-724.76,0.00027671,2]
[322183560,1712866258097,-2019.96,0.00027671,2]
[322183561,1712866258108,-500.0,0.00027671,2]
[322183562,1712866258119,-500.0,0.00027671,2]
[322183563,1712866258131,-925.56,0.00027671,2]
[322183564,1712866258141,-841.6,0.00027671,2]
[322183565,1712866258152,-5755.52,0.00027671,2]
[322183566,1712866258162,-500.0,0.00027671,2]
[322183567,1712866258173,-500.0,0.00027671,2]
[322183568,1712866258182,-500.0,0.00027671,2]
[322183569,1712866258193,-2979.53,0.00027671,2]
[322183570,1712866258203,-500.0,0.00027671,2]
[322183571,1712866258215,-500.0,0.00027671,2]
[322183572,1712866258226,-500.0,0.00027671,2]
[322183573,1712866258235,-7358.62,0.00027671,2]
[322183574,1712866258246,-1781.34,0.00027671,2]
[322183575,1712866258257,-674.21,0.00027671,2]
[322183576,1712866258267,-500.0,0.00027671,2]
[322183577,1712866258277,-999.6,0.00027671,2]
[322183578,1712866258286,-500.0,0.00027671,2]
[322183579,1712866258294,-13551.3,0.00027671,2]
[322183580,1712866258303,-977.24,0.00027671,2]
[322183581,1712866258316,-6130.13,0.00027671,2]
[322183582,1712866258325,-11420.3,0.00027671,2]
[322183583,1712866258334,-500.0,0.00027671,2]
[322183584,1712866258344,-500.0,0.00027671,2]
[322183585,1712866258354,-613.53744782,0.00027671,2]
[322183586,1712866258364,-3160.33,0.00027671,2]
[322183587,1712866258373,-500.0,0.00027671,2]
[322183588,1712866258382,-500.0,0.00027671,2]
[322183589,1712866258391,-1078.8,0.00027671,2]
[322183590,1712866258401,-500.0,0.00027671,2]
[322183591,1712866258411,-920.63,0.00027671,2]
[322183592,1712866258422,-2089.5,0.00027671,2]
[322183593,1712866258433,-500.0,0.00027671,2]
[322183594,1712866258443,-2697.04,0.00027671,2]
[322183595,1712866258453,-500.0,0.00027671,2]
[322183596,1712866258464,-500.0,0.00027671,2]
[322183597,1712866258474,-1658.45,0.00027671,2]
[322183598,1712866258484,-500.0,0.00027671,2]
[322183599,1712866258495,-500.0,0.00027671,2]
[322183600,1712866258504,-500.0,0.00027671,2]
[322183601,1712866258515,-500.0,0.00027671,2]
[322183602,1712866258524,-2563.47,0.00027671,2]
[322183603,1712866258534,-657.32,0.00027671,2]
[322183604,1712866258543,-1918.89,0.00027671,2]
[322183605,1712866258552,-2824.86,0.00027671,2]
[322183606,1712866258562,-1472.2,0.00027671,2]
[322183607,1712866258573,-1648.66,0.00027671,2]
[322183608,1712866258582,-4935.21,0.00027671,2]
[322183609,1712866258591,-500.0,0.00027671,2]
[322183610,1712866258600,-1084.13,0.00027671,2]
[322183611,1712866258611,-2053.06,0.00027671,2]
[322183612,1712866258623,-1062.64,0.00027671,2]
[322183613,1712866258633,-1670.06,0.00027671,2]
[322183614,1712866258643,-500.0,0.00027671,2]
[322183615,1712866258654,-500.0,0.00027671,2]
[322183616,1712866258664,-1017.45,0.00027671,2]
[322183617,1712866258674,-521.66769635,0.00027671,2]
[322183618,1712866258685,-3172.34,0.00027671,2]
[322183619,1712866258695,-500.0,0.00027671,2]
[322183620,1712866258704,-500.0,0.00027671,2]
[322183621,1712866258716,-572.92838807,0.00027671,2]
[322183622,1712866258726,-557.38699061,0.00027671,2]
[322183623,1712866258737,-2374.98,0.00027671,2]
[322183624,1712866258747,-500.0,0.00027671,2]
[322183625,1712866258757,-500.0,0.00027671,2]
[322183626,1712866258766,-500.0,0.00027671,2]
[322183627,1712866258776,-3517.03,0.00027671,2]
[322183628,1712866258786,-570.84853379,0.00027671,2]
[322183629,1712866258796,-2016.1,0.00027671,2]
[322183630,1712866258807,-989.14,0.00027671,2]
[322183631,1712866258817,-500.0,0.00027671,2]
[322183632,1712866258826,-748.51,0.00027671,2]
[322183633,1712866258836,-500.0,0.00027671,2]
[322183634,1712866258845,-500.0,0.00027671,2]
[322183635,1712866258856,-4974.3,0.00027671,2]
[322183636,1712866258865,-1689.43,0.00027671,2]
[322183637,1712866258875,-500.0,0.00027671,2]
[322183638,1712866258885,-902.03,0.00027671,2]
[322183639,1712866258895,-923.77,0.00027671,2]
[322183640,1712866258904,-2482.05,0.00027671,2]
[322183641,1712866258914,-500.0,0.00027671,2]
[322183642,1712866258924,-500.0,0.00027671,2]
[322183643,1712866258933,-500.0,0.00027671,2]
[322183644,1712866258943,-1118.81,0.00027671,2]
[322183645,1712866258952,-4699.78,0.00027671,2]
[322183646,1712866258961,-500.0,0.00027671,2]
[322183647,1712866258971,-1231.34,0.00027671,2]
[322183648,1712866258982,-532.22,0.00027671,2]
[322183649,1712866258993,-2512.23,0.00027671,2]
[322183650,1712866259004,-786.99,0.00027671,2]
[322183651,1712866259014,-693.31,0.00027671,2]
[322183652,1712866259025,-1891.34,0.00027671,2]
[322183653,1712866259037,-16451.81,0.00027671,2]
[322183654,1712866259057,-543.29961113,0.00027671,2]
[322183655,1712866259079,-3531.57,0.00027671,2]
[322183656,1712866259093,-500.0,0.00027671,2]
[322183657,1712866259111,-500.0,0.00027671,2]
[322183658,1712866259129,-1603.88,0.00027671,2]
[322183659,1712866259147,-1713.66,0.00027671,2]
[322183660,1712866259161,-500.0,0.00027671,2]
[322183661,1712866259178,-3864.99,0.00027671,2]
[322183662,1712866259192,-2773.94,0.00027671,2]
[322183663,1712866259211,-500.0,0.00027671,2]
[322183664,1712866259223,-17893.28,0.00027671,2]
[322183665,1712866259241,-1465.01,0.00027671,2]
[322183666,1712866259259,-500.0,0.00027671,2]
[322183667,1712866259274,-500.0,0.00027671,2]
[322183668,1712866259289,-500.0,0.00027671,2]
[322183669,1712866259304,-500.0,0.00027671,2]
[322183670,1712866259325,-1486.0,0.00027671,2]
[322183671,1712866259341,-3268.69,0.00027671,2]
[322183672,1712866259355,-371.98979275,0.00027671,2]
[322183673,1712866259367,-3054.84,0.00027671,2]
[322183674,1712866259384,-1121.93,0.00027671,2]
[322183675,1712866259399,-500.0,0.00027671,2]
[322183676,1712866259413,-500.0,0.00027671,2]
[322183677,1712866259424,-516.59,0.00027671,2]
[322183678,1712866259438,-500.0,0.00027671,2]
[322183679,1712866259452,-780.67,0.00027671,2]
[322183680,1712866259465,-3428.36,0.00027671,2]
[322183681,1712866259478,-500.0,0.00027671,2]
[322183682,1712866259493,-500.0,0.00027671,2]
[322183683,1712866259507,-1352.77,0.00027671,2]
[322183684,1712866259521,-4296.34,0.00027671,2]
[322183685,1712866259534,-5122.9,0.00027671,2]
[322183686,1712866259547,-500.0,0.00027671,2]
[322183687,1712866259562,-2562.42,0.00027671,2]
[322183688,1712866259576,-46860.07,0.00027671,2]
[322183689,1712866259589,-7358.58,0.00027671,2]
[322183690,1712866259603,-1784.03,0.00027671,2]
[322183691,1712866259616,-500.0,0.00027671,2]
[322183692,1712866259629,-702.41,0.00027671,2]
[322183693,1712866259643,-500.0,0.00027671,2]
[322183694,1712866259657,-3098.63,0.00027671,2]
[322183695,1712866259670,-500.0,0.00027671,2]
[322183696,1712866259684,-5417.27,0.00027671,2]
[322183697,1712866259698,-1542.94,0.00027671,2]
[322183698,1712866259711,-307.44894874,0.00027671,2]
[322183699,1712866259725,-500.0,0.00027671,2]
[322183700,1712866259737,-500.0,0.00027671,2]
[322183701,1712866259750,-1995.8,0.00027671,2]
[322183702,1712866259763,-530.45,0.00027671,2]
[322183703,1712866259777,-500.0,0.00027671,2]
[322183704,1712866259791,-1853.15,0.00027671,2]
[322183705,1712866259805,-500.0,0.00027671,2]
[322183706,1712866259819,-500.0,0.00027671,2]
[322183707,1712866259834,-1096.14,0.00027671,2]
[322183708,1712866259848,-15375.51,0.00027671,2]
[322183709,1712866259862,-500.0,0.00027671,2]
[322183710,1712866259876,-3565.13,0.00027671,2]
[322183711,1712866259891,-7222.91,0.00027671,2]
[322183712,1712866259908,-609.04923461,0.00027671,2]
[322183713,1712866259921,-500.0,0.00027671,2]
[322183714,1712866259934,-500.0,0.00027671,2]
[322183715,1712866259947,-500.0,0.00027671,2]
[322183716,1712866259960,-500.0,0.00027671,2]
[322183717,1712866259973,-1213.36,0.00027671,2]
[322183718,1712866259987,-4450.39,0.00027671,2]
[322183719,1712866260000,-500.0,0.00027671,2]
[322183720,1712866260014,-2115.11,0.00027671,2]
[322183721,1712866260027,-500.0,0.00027671,2]
[322183722,1712866260041,-500.0,0.00027671,2]
[322183723,1712866260056,-500.0,0.00027671,2]
[322183724,1712866260069,-500.0,0.00027671,2]
[322183725,1712866260083,-741.16,0.00027671,2]
[322183726,1712866260097,-2594.01,0.00027671,2]
[322183727,1712866260111,-500.0,0.00027671,2]
[322183728,1712866260125,-500.0,0.00027671,2]
[322183729,1712866260139,-6445.43,0.00027671,2]
[322183730,1712866260153,-2839.3,0.00027671,2]
[322183731,1712866260167,-500.0,0.00027671,2]
[322183732,1712866260180,-3732.49,0.00027671,2]
[322183733,1712866260194,-8975.08,0.00027671,2]
[322183734,1712866260208,-500.0,0.00027671,2]
[322183735,1712866260222,-500.0,0.00027671,2]
[322183736,1712866260235,-500.0,0.00027671,2]
[322183737,1712866260249,-765.26,0.00027671,2]
[322183738,1712866260263,-500.0,0.00027671,2]
[322183739,1712866260277,-3395.09,0.00027671,2]
[322183740,1712866260290,-1480.49,0.00027671,2]
[322183741,1712866260304,-794.55,0.00027671,2]
[322183742,1712866260319,-500.0,0.00027671,2]
[322183743,1712866260334,-4114.67,0.00027671,2]
[322183744,1712866260348,-1717.96,0.00027671,2]
[322183745,1712866260364,-2894.08,0.00027671,2]
[322183746,1712866260377,-2593.4,0.00027671,2]
[322183747,1712866260391,-500.0,0.00027671,2]
[322183748,1712866260405,-5194.86,0.00027671,2]
[322183749,1712866260418,-500.0,0.00027671,2]
[322183750,1712866260431,-30310.74,0.00027671,2]
[322183751,1712866260445,-500.0,0.00027671,2]
[322183752,1712866260458,-6096.81,0.00027671,2]
[322183753,1712866260472,-500.0,0.00027671,2]
[322183754,1712866260485,-1194.9,0.00027671,2]
[322183755,1712866260498,-4737.04,0.00027671,2]
[322183756,1712866260511,-1569.19,0.00027671,2]
[322183757,1712866260524,-500.0,0.00027671,2]
[322183758,1712866260537,-3886.98,0.00027671,2]
[322183759,1712866260551,-1789.45,0.00027671,2]
[322183760,1712866260564,-3832.93,0.00027671,2]
[322183761,1712866260577,-500.0,0.00027671,2]
[322183762,1712866260590,-500.0,0.00027671,2]
[322183763,1712866260603,-500.0,0.00027671,2]
[322183764,1712866260616,-841.2,0.00027671,2]
[322183765,1712866260629,-500.0,0.00027671,2]
[322183766,1712866260641,-1835.29,0.00027671,2]
[322183767,1712866260654,-500.0,0.00027671,2]
[322183768,1712866260667,-6147.13,0.00027671,2]
[322183769,1712866260680,-546.98,0.00027671,2]
[322183770,1712866260692,-500.0,0.00027671,2]
[322183771,1712866260705,-1028.51,0.00027671,2]
[322183772,1712866260719,-7053.97,0.00027671,2]
[322183773,1712866260731,-500.0,0.00027671,2]
[322183774,1712866260744,-1541.26,0.00027671,2]
[322183775,1712866260757,-500.0,0.00027671,2]
[322183776,1712866260770,-500.0,0.00027671,2]
[322183777,1712866260783,-2198.83,0.00027671,2]
[322183778,1712866260796,-8215.47,0.00027671,2]
[322183779,1712866260810,-278.10630877,0.00027671,2]
[322183780,1712866260823,-5945.18,0.00027671,2]
[322183781,1712866260836,-511.85,0.00027671,2]
[322183782,1712866260849,-500.0,0.00027671,2]
[322183783,1712866260863,-1239.09,0.00027671,2]
[322183784,1712866260877,-1614.95,0.00027671,2]
[322183785,1712866260891,-500.0,0.00027671,2]
[322183786,1712866260904,-500.0,0.00027671,2]
[322183787,1712866260916,-500.0,0.00027671,2]
[322183788,1712866260930,-500.0,0.00027671,2]
[322183789,1712866260942,-2780.47,0.00027671,2]
[322183790,1712866260954,-2579.32,0.00027671,2]
[322183791,1712866260966,-719.74,0.00027671,2]
[322183792,1712866260979,-1315.07,0.00027671,2]
[322183793,1712866260991,-500.0,0.00027671,2]
[322183794,1712866261004,-3079.56,0.00027671,2]
[322183795,1712866261016,-500.0,0.00027671,2]
[322183796,1712866261029,-898.15,0.00027671,2]
[322183797,1712866261042,-3553.65,0.00027671,2]
[322183798,1712866261054,-1851.91,0.00027671,2]
[322183799,1712866261067,-500.0,0.00027671,2]
[322183800,1712866261079,-500.0,0.00027671,2]
[322183801,1712866261092,-526.32590144,0.00027671,2]
[322183802,1712866261105,-3611.66,0.00027671,2]
[322183803,1712866261118,-2171.62,0.00027671,2]
[322183804,1712866261127,-500.0,0.00027671,2]
[322183805,1712866261137,-500.0,0.00027671,2]
[322183806,1712866261147,-500.0,0.00027671,2]
[322183807,1712866261156,-500.0,0.00027671,2]
[322183808,1712866261165,-552.13,0.00027671,2]
[322183809,1712866261174,-500.0,0.00027671,2]
[322183810,1712866261521,-623.40103296,0.00027671,2]
[322183811,1712866261542,-500.0,0.00027671,2]
[322183812,1712866261552,-500.0,0.00027671,2]
[322183813,1712866261561,-808.35,0.00027671,2]
[322183814,1712866261571,-500.0,0.00027671,2]
[322183815,1712866261580,-2056.25,0.00027671,2]
[322183816,1712866261590,-3830.51,0.00027671,2]
[322183817,1712866261599,-2309.86,0.00027671,2]
[322183818,1712866261611,-1556.94,0.00027671,2]
[322183819,1712866261621,-4786.22,0.00027671,2]
[322183820,1712866261631,-1205.68,0.00027671,2]
[322183821,1712866261640,-500.0,0.00027671,2]
[322183822,1712866261650,-1073.0,0.00027671,4]
[322183823,1712866261661,-147904.0,0.00027671,4]
[322183824,1712866261671,-3129.28576089,0.00027695,2]
[322183825,1712866261680,-615.0,0.000277,2]
[322183826,1712866261690,-597.57,0.000277,2]
[322183827,1712866261699,-425.43417062,0.00027708,2]
[322183828,1712866261709,-1506.89806601,0.0002771,2]
[322183829,1712866261719,-907.22,0.00027737,2]
[322183830,1712866261728,-153.92527757,0.00027763,2]
[322183831,1712866261738,-450.0,0.00027795,2]
[322183832,1712866261747,-284.771409,0.000278,2]
[322183833,1712866261757,-425.43417062,0.00027845,2]
[322183834,1712866261767,-500.0,0.00027944,2]
[322183835,1712866261776,-500.0,0.00027944,2]
[322183836,1712866261786,-500.0,0.00027944,2]
[322183837,1712866261795,-500.0,0.00027944,2]
[322183838,1712866261805,-500.0,0.00027945,2]
[322183839,1712866261814,-500.0,0.00027945,2]
[322183840,1712866261823,-568.24,0.00027945,2]
[322183841,1712866261833,-645.87,0.00027945,2]
[322183842,1712866261843,-500.0,0.00027945,2]
[322183843,1712866261855,-500.0,0.00027945,2]
[322183844,1712866261866,-500.0,0.00027945,2]
[322183845,1712866261875,-939.6,0.00027945,2]
[322183846,1712866261885,-500.0,0.00027945,2]
[322183847,1712866261894,-500.0,0.00027945,2]
[322183848,1712866261904,-500.0,0.00027945,2]
[322183849,1712866261913,-500.0,0.00027945,2]
[322183850,1712866261923,-500.0,0.00027945,2]
[322183851,1712866261932,-500.0,0.00027945,2]
[322183852,1712866261942,-500.0,0.00027945,2]
[322183853,1712866261951,-500.0,0.00027945,2]
[322183854,1712866261960,-500.0,0.00027945,2]
[322183855,1712866261971,-524.12,0.00027945,2]
[322183856,1712866261981,-500.0,0.00027945,2]
[322183857,1712866261990,-652.26,0.00027945,2]
[322183858,1712866262000,-500.0,0.00027945,2]
[322183859,1712866262009,-676.28,0.00027945,2]
[322183860,1712866262018,-500.0,0.00027945,2]
[322183861,1712866262028,-582.53,0.00027945,2]
[322183862,1712866262037,-500.0,0.00027945,2]
[322183863,1712866262047,-500.0,0.00027945,2]
[322183864,1712866262057,-595.04,0.00027945,2]
[322183865,1712866262066,-500.0,0.00027945,2]
[322183866,1712866262076,-500.0,0.00027945,2]
[322183867,1712866262086,-500.0,0.00027945,2]
[322183868,1712866262095,-500.0,0.00027945,2]
[322183869,1712866262110,-500.0,0.00027945,2]
[322183870,1712866262119,-515.68,0.00027945,2]
[322183871,1712866262129,-500.0,0.00027945,2]
[322183872,1712866262138,-500.0,0.00027945,2]
[322183873,1712866262148,-500.0,0.00027945,2]
[322183874,1712866262157,-718.76,0.00027945,2]
[322183875,1712866262166,-500.0,0.00027945,2]
[322183876,1712866262175,-500.0,0.00027945,2]
[322183877,1712866262185,-500.0,0.00027945,2]
[322183878,1712866262194,-505.62,0.00027945,2]
[322183879,1712866262203,-947.34,0.00027945,2]
[322183880,1712866262213,-500.0,0.00027945,2]
[322183881,1712866262224,-500.0,0.00027945,2]
[322183882,1712866262233,-500.0,0.00027945,2]
[322183883,1712866262242,-307.42929579,0.00027945,2]
[322183884,1712866262253,-516.64334294,0.00027945,2]
[322183885,1712866262263,-786.91,0.00027945,2]
[322183886,1712866262272,-500.0,0.00027945,2]
[322183887,1712866262281,-500.0,0.00027945,2]
[322183888,1712866262290,-500.0,0.00027945,2]
[322183889,1712866262299,-552.74,0.00027945,2]
[322183890,1712866262309,-500.0,0.00027945,2]
[322183891,1712866262322,-500.0,0.00027945,2]
[322183892,1712866262332,-546.67,0.00027945,2]
[322183893,1712866262341,-519.24,0.00027945,2]
[322183894,1712866262351,-500.0,0.00027945,2]
[322183895,1712866262364,-500.0,0.00027945,2]
[322183896,1712866262373,-500.0,0.00027945,2]
[322183897,1712866262382,-1049.31,0.00027945,2]
[322183898,1712866262393,-849.21,0.00027945,2]
[322183899,1712866262403,-500.0,0.00027945,2]
[322183900,1712866262412,-719.23,0.00027945,2]
[322183901,1712866262421,-500.0,0.00027945,2]
[322183902,1712866262430,-500.0,0.00027945,2]
[322183903,1712866262439,-500.0,0.00027945,2]
[322183904,1712866262448,-579.3,0.00027945,2]
[322183905,1712866262458,-473.35428484,0.00027945,2]
[322183906,1712866262467,-500.0,0.00027945,2]
[322183907,1712866262476,-500.0,0.00027945,2]
[322183908,1712866262486,-554.93,0.00027945,2]
[322183909,1712866262495,-500.0,0.00027945,2]
[322183910,1712866262504,-727.72,0.00027945,2]
[322183911,1712866262514,-500.0,0.00027945,2]
[322183912,1712866262523,-500.0,0.00027945,2]
[322183913,1712866262533,-500.0,0.00027945,2]
[322183914,1712866262542,-500.0,0.00027945,2]
[322183915,1712866262552,-538.38,0.00027945,2]
[322183916,1712866262561,-500.0,0.00027945,2]